[Event "Titled Tuesday Blitz December 20 Late 2022"]
[White "Goltsev, Dmitry"]
[Black "Flynn, Jacob"]
[WhiteFideId "24176710"]
[BlackFideId "2509393"]
[WhiteElo "2327"]
[BlackElo "2053"]
[Result "1-0"]
[Round "01"]
[TimeControl "180+1"]
[Date "2022.12.21"]
[WhiteClock "0:01:01"]
[BlackClock "0:00:53"]

1. e4 {[%clk 0:02:58]}  e5 {[%clk 0:02:59]} 2. Nf3 {[%clk 0:02:58]}  Nc6 {[%clk 0:03:00]} 3. Bb5 {[%clk 0:02:58]}  a6 {[%clk 0:03:00]} 4. Ba4 {[%clk 0:02:58]}  Nf6 {[%clk 0:03:00]} 5. O-O {[%clk 0:02:58]}  Be7 {[%clk 0:03:01]} 6. Re1 {[%clk 0:02:58]}  b5 {[%clk 0:03:01]} 7. Bb3 {[%clk 0:02:58]}  O-O {[%clk 0:03:02]} 8. h3 {[%clk 0:02:56]}  d6 {[%clk 0:02:58]} 9. c3 {[%clk 0:02:56]}  Bb7 {[%clk 0:02:57]} 10. d4 {[%clk 0:02:56]}  Re8 {[%clk 0:02:57]} 11. Ng5 {[%clk 0:02:54]}  Rf8 {[%clk 0:02:57]} 12. Nf3 {[%clk 0:02:55]}  Re8 {[%clk 0:02:57]} 13. Nbd2 {[%clk 0:02:55]}  Bf8 {[%clk 0:02:56]} 14. Nf1 {[%clk 0:02:44]}  h6 {[%clk 0:02:54]} 15. Ng3 {[%clk 0:02:35]}  exd4 {[%clk 0:02:54]} 16. cxd4 {[%clk 0:02:35]}  Na5 {[%clk 0:02:54]} 17. Bc2 {[%clk 0:02:35]}  c5 {[%clk 0:02:54]} 18. d5 {[%clk 0:02:34]}  Nd7 {[%clk 0:02:46]} 19. Nf5 {[%clk 0:02:31]}  c4 {[%clk 0:02:36]} 20. Bf4 {[%clk 0:02:26]}  Ne5 {[%clk 0:02:34]} 21. Nxe5 {[%clk 0:02:24]}  dxe5 {[%clk 0:02:35]} 22. Be3 {[%clk 0:02:24]}  Bc8 {[%clk 0:02:32]} 23. Qg4 {[%clk 0:02:18]}  Kh7 {[%clk 0:02:21]} 24. Qf3 {[%clk 0:02:11]}  Nb7 {[%clk 0:02:16]} 25. Rad1 {[%clk 0:02:09]}  g6 {[%clk 0:01:54]} 26. Ng3 {[%clk 0:01:50]}  Nd6 {[%clk 0:01:53]} 27. Qe2 {[%clk 0:01:47]}  Bd7 {[%clk 0:01:50]} 28. f4 {[%clk 0:01:47]}  Bg7 {[%clk 0:01:46]} 29. f5 {[%clk 0:01:44]}  Rc8 {[%clk 0:01:39]} 30. Rf1 {[%clk 0:01:43]}  Qe7 {[%clk 0:01:36]} 31. Rf2 {[%clk 0:01:37]}  Bf6 {[%clk 0:01:37]} 32. Rdf1 {[%clk 0:01:34]}  Rf8 {[%clk 0:01:37]} 33. Qd2 {[%clk 0:01:30]}  Bg5 {[%clk 0:01:32]} 34. f6 {[%clk 0:01:30]}  Qd8 {[%clk 0:01:10]} 35. Bxg5 {[%clk 0:01:29]}  hxg5 {[%clk 0:01:11]} 36. Qxg5 {[%clk 0:01:30]}  Rh8 {[%clk 0:01:12]} 37. Qxe5 {[%clk 0:01:20]}  Be8 {[%clk 0:01:11]} 38. Qe7 {[%clk 0:01:19]}  Qb6 {[%clk 0:01:09]} 39. e5 {[%clk 0:01:19]}  Nb7 {[%clk 0:01:01]} 40. d6 {[%clk 0:01:05]}  Nc5 {[%clk 0:01:01]} 41. Kh2 {[%clk 0:01:04]}  Kg8 {[%clk 0:00:56]} 42. Bxg6 {[%clk 0:01:03]}  Nd3 {[%clk 0:00:52]} 43. Bxd3 {[%clk 0:01:02]}  cxd3 {[%clk 0:00:53]} 44. Rf4 {[%clk 0:01:01]} 1-0


[Site "https://www.chess.com"]

[Event "Titled Tuesday Blitz December 20 Late 2022"]
[White "Goncalves, Davi Sulzbacher"]
[Black "Arbunic Castro, Giovanna"]
[WhiteFideId "2154510"]
[BlackFideId "3400549"]
[WhiteElo "2182"]
[BlackElo "1958"]
[Result "1-0"]
[Round "01"]
[TimeControl "180+1"]
[Date "2022.12.21"]
[WhiteClock "0:00:09"]
[BlackClock "0:00:01"]

1. Nf3 {[%clk 0:03:00]}  Nf6 {[%clk 0:02:57]} 2. g3 {[%clk 0:02:59]}  g6 {[%clk 0:02:56]} 3. Bg2 {[%clk 0:02:59]}  Bg7 {[%clk 0:02:56]} 4. O-O {[%clk 0:03:00]}  O-O {[%clk 0:02:56]} 5. c4 {[%clk 0:03:01]}  d6 {[%clk 0:02:55]} 6. d4 {[%clk 0:03:00]}  c5 {[%clk 0:02:55]} 7. Nc3 {[%clk 0:02:59]}  Nc6 {[%clk 0:02:53]} 8. d5 {[%clk 0:02:59]}  Na5 {[%clk 0:02:51]} 9. Nd2 {[%clk 0:02:58]}  a6 {[%clk 0:02:49]} 10. e4 {[%clk 0:02:55]}  Rb8 {[%clk 0:02:47]} 11. a4 {[%clk 0:02:32]}  Bd7 {[%clk 0:02:43]} 12. Qc2 {[%clk 0:02:30]}  e6 {[%clk 0:02:37]} 13. b3 {[%clk 0:02:27]}  exd5 {[%clk 0:02:31]} 14. exd5 {[%clk 0:02:26]}  b5 {[%clk 0:02:17]} 15. axb5 {[%clk 0:02:25]}  axb5 {[%clk 0:02:15]} 16. Nxb5 {[%clk 0:02:16]}  Bxb5 {[%clk 0:02:10]} 17. cxb5 {[%clk 0:02:15]}  Rxb5 {[%clk 0:02:01]} 18. Bb2 {[%clk 0:02:13]}  Qb8 {[%clk 0:01:56]} 19. Ra3 {[%clk 0:01:48]}  Qb7 {[%clk 0:01:53]} 20. Rfa1 {[%clk 0:01:47]}  Qb6 {[%clk 0:01:26]} 21. Bc3 {[%clk 0:01:33]}  Nb7 {[%clk 0:01:02]} 22. Qb2 {[%clk 0:01:27]}  Nh5 {[%clk 0:01:00]} 23. Bxg7 {[%clk 0:01:20]}  Nxg7 {[%clk 0:00:58]} 24. Ra6 {[%clk 0:01:07]}  Qd8 {[%clk 0:00:49]} 25. Ne4 {[%clk 0:00:59]}  f5 {[%clk 0:00:29]} 26. Ra8 {[%clk 0:00:57]}  Qe7 {[%clk 0:00:20]} 27. Nf6+ {[%clk 0:00:54]}  Kh8 {[%clk 0:00:17]} 28. Rxf8+ {[%clk 0:00:43]}  Qxf8 {[%clk 0:00:15]} 29. Re1 {[%clk 0:00:40]}  c4 {[%clk 0:00:12]} 30. Nd7 {[%clk 0:00:22]}  Qf7 {[%clk 0:00:07]} 31. Nf6 {[%clk 0:00:10]}  Rxb3 {[%clk 0:00:06]} 32. Qa2 {[%clk 0:00:09]}  Nc5 {[%clk 0:00:01]} 33. Qa8+ {[%clk 0:00:09]} 1-0


[Site "https://www.chess.com"]

[Event "Titled Tuesday Blitz December 20 Late 2022"]
[White "Haydon, David L"]
[Black "Bas Mas, Jose Joaquin"]
[WhiteFideId "415405"]
[BlackFideId "22219064"]
[WhiteElo "2318"]
[BlackElo "2233"]
[Result "1-0"]
[Round "01"]
[TimeControl "180+1"]
[Date "2022.12.21"]
[WhiteClock "0:01:51"]
[BlackClock "0:00:33"]

1. d4 {[%clk 0:02:51]}  f5 {[%clk 0:02:59]} 2. Nf3 {[%clk 0:02:51]}  Nf6 {[%clk 0:02:58]} 3. c4 {[%clk 0:02:42]}  e6 {[%clk 0:02:58]} 4. Nc3 {[%clk 0:02:41]}  Bb4 {[%clk 0:02:58]} 5. Bd2 {[%clk 0:02:41]}  Bxc3 {[%clk 0:02:57]} 6. Bxc3 {[%clk 0:02:41]}  O-O {[%clk 0:02:57]} 7. Qc2 {[%clk 0:02:41]}  b6 {[%clk 0:02:57]} 8. g3 {[%clk 0:02:40]}  Bb7 {[%clk 0:02:56]} 9. Bg2 {[%clk 0:02:41]}  d6 {[%clk 0:02:46]} 10. O-O {[%clk 0:02:39]}  Nbd7 {[%clk 0:02:40]} 11. d5 {[%clk 0:02:38]}  exd5 {[%clk 0:01:47]} 12. Nd4 {[%clk 0:02:24]}  Qe7 {[%clk 0:01:41]} 13. Nxf5 {[%clk 0:02:21]}  Qf7 {[%clk 0:01:34]} 14. Rad1 {[%clk 0:02:19]}  Ne4 {[%clk 0:01:27]} 15. Ne3 {[%clk 0:02:17]}  Ndf6 {[%clk 0:01:14]} 16. cxd5 {[%clk 0:02:15]}  Rae8 {[%clk 0:01:09]} 17. Bxf6 {[%clk 0:02:11]}  Nxf6 {[%clk 0:01:07]} 18. Rd4 {[%clk 0:02:11]}  Ba6 {[%clk 0:00:59]} 19. Ra4 {[%clk 0:02:06]}  Bb5 {[%clk 0:00:50]} 20. Rxa7 {[%clk 0:02:04]}  Re7 {[%clk 0:00:49]} 21. a4 {[%clk 0:02:00]}  Be8 {[%clk 0:00:44]} 22. Nf5 {[%clk 0:01:59]}  Rd7 {[%clk 0:00:43]} 23. e4 {[%clk 0:01:53]}  Nxd5 {[%clk 0:00:36]} 24. exd5 {[%clk 0:01:52]}  Qxf5 {[%clk 0:00:35]} 25. Qxf5 {[%clk 0:01:52]}  Rxf5 {[%clk 0:00:35]} 26. Bh3 {[%clk 0:01:53]}  Rxd5 {[%clk 0:00:33]} 27. Be6+ {[%clk 0:01:51]} 1-0


[Site "https://www.chess.com"]

[Event "Titled Tuesday Blitz December 20 Late 2022"]
[White "Hoffmann, Asa"]
[Black "Han, Yichen"]
[WhiteFideId "2001470"]
[BlackFideId "1054430"]
[WhiteElo "2117"]
[BlackElo "2323"]
[Result "0-1"]
[Round "01"]
[TimeControl "180+1"]
[Date "2022.12.21"]
[WhiteClock "0:00:17"]
[BlackClock "0:00:39"]

1. d4 {[%clk 0:02:51]}  Nf6 {[%clk 0:02:58]} 2. Bg5 {[%clk 0:02:50]}  b6 {[%clk 0:02:55]} 3. f3 {[%clk 0:02:49]}  d5 {[%clk 0:02:47]} 4. c4 {[%clk 0:02:48]}  e6 {[%clk 0:02:44]} 5. Nc3 {[%clk 0:02:47]}  Bb7 {[%clk 0:02:42]} 6. e3 {[%clk 0:02:42]}  Nbd7 {[%clk 0:02:39]} 7. Bd3 {[%clk 0:02:41]}  h6 {[%clk 0:02:39]} 8. Bh4 {[%clk 0:02:40]}  Bb4 {[%clk 0:02:37]} 9. Qa4 {[%clk 0:02:36]}  Be7 {[%clk 0:02:29]} 10. Nge2 {[%clk 0:02:34]}  O-O {[%clk 0:02:27]} 11. O-O {[%clk 0:02:33]}  a6 {[%clk 0:02:27]} 12. cxd5 {[%clk 0:02:18]}  exd5 {[%clk 0:02:27]} 13. Rac1 {[%clk 0:02:12]}  c5 {[%clk 0:02:27]} 14. Qd1 {[%clk 0:02:09]}  c4 {[%clk 0:02:26]} 15. Bb1 {[%clk 0:02:08]}  b5 {[%clk 0:02:26]} 16. e4 {[%clk 0:02:00]}  b4 {[%clk 0:02:19]} 17. Nxd5 {[%clk 0:01:58]}  Nxd5 {[%clk 0:02:18]} 18. exd5 {[%clk 0:01:55]}  Bxh4 {[%clk 0:02:17]} 19. Rxc4 {[%clk 0:01:54]}  a5 {[%clk 0:02:12]} 20. Be4 {[%clk 0:01:47]}  Nb6 {[%clk 0:01:54]} 21. Rc5 {[%clk 0:01:46]}  Rc8 {[%clk 0:01:47]} 22. Nf4 {[%clk 0:01:43]}  Bg5 {[%clk 0:01:43]} 23. Nh3 {[%clk 0:01:42]}  Rxc5 {[%clk 0:01:39]} 24. dxc5 {[%clk 0:01:24]}  Nxd5 {[%clk 0:01:39]} 25. Nxg5 {[%clk 0:01:19]}  Qxg5 {[%clk 0:01:36]} 26. Qe2 {[%clk 0:01:07]}  Nf4 {[%clk 0:01:33]} 27. Qc2 {[%clk 0:01:05]}  Bxe4 {[%clk 0:01:25]} 28. fxe4 {[%clk 0:01:02]}  Ne6 {[%clk 0:01:26]} 29. c6 {[%clk 0:01:01]}  Qc5+ {[%clk 0:01:21]} 30. Qxc5 {[%clk 0:01:00]}  Nxc5 {[%clk 0:01:22]} 31. Rc1 {[%clk 0:00:59]}  Nxe4 {[%clk 0:01:14]} 32. c7 {[%clk 0:00:59]}  Rc8 {[%clk 0:01:15]} 33. Rc4 {[%clk 0:00:54]}  Nf6 {[%clk 0:01:13]} 34. Rc5 {[%clk 0:00:49]}  a4 {[%clk 0:01:12]} 35. h3 {[%clk 0:00:44]}  Ne8 {[%clk 0:01:10]} 36. Rb5 {[%clk 0:00:43]}  Rxc7 {[%clk 0:01:02]} 37. Rxb4 {[%clk 0:00:42]}  Rc2 {[%clk 0:01:01]} 38. Rxa4 {[%clk 0:00:40]}  Rxb2 {[%clk 0:01:00]} 39. Ra8 {[%clk 0:00:39]}  Kf8 {[%clk 0:01:00]} 40. a4 {[%clk 0:00:39]}  Ra2 {[%clk 0:00:59]} 41. a5 {[%clk 0:00:39]}  Ke7 {[%clk 0:01:00]} 42. a6 {[%clk 0:00:39]}  Nd6 {[%clk 0:00:59]} 43. Kh2 {[%clk 0:00:31]}  Nb5 {[%clk 0:00:51]} 44. Rb8 {[%clk 0:00:28]}  Nc7 {[%clk 0:00:44]} 45. Rb7 {[%clk 0:00:26]}  Kd7 {[%clk 0:00:43]} 46. a7 {[%clk 0:00:26]}  Kc6 {[%clk 0:00:42]} 47. Rb2 {[%clk 0:00:23]}  Rxa7 {[%clk 0:00:41]} 48. Rf2 {[%clk 0:00:23]}  Ne6 {[%clk 0:00:41]} 49. g4 {[%clk 0:00:21]}  Kd6 {[%clk 0:00:41]} 50. Kg3 {[%clk 0:00:20]}  Ra3+ {[%clk 0:00:41]} 51. Kh4 {[%clk 0:00:19]}  Ng5 {[%clk 0:00:40]} 52. Kh5 {[%clk 0:00:17]}  Rxh3# {[%clk 0:00:39]} 0-1


[Site "https://www.chess.com"]

[Event "Titled Tuesday Blitz December 20 Late 2022"]
[White "Holt, Conrad"]
[Black "Kirillov, Dmitry"]
[WhiteFideId "2034387"]
[BlackFideId "34180572"]
[WhiteElo "2592"]
[BlackElo "2111"]
[Result "1/2-1/2"]
[Round "01"]
[TimeControl "180+1"]
[Date "2022.12.21"]
[WhiteClock "0:00:20"]
[BlackClock "0:00:11"]

1. d4 {[%clk 0:03:00]}  d5 {[%clk 0:02:57]} 2. c4 {[%clk 0:03:01]}  e6 {[%clk 0:02:57]} 3. Nc3 {[%clk 0:03:01]}  c6 {[%clk 0:02:57]} 4. e3 {[%clk 0:03:00]}  f5 {[%clk 0:02:55]} 5. g4 {[%clk 0:02:59]}  fxg4 {[%clk 0:02:37]} 6. Qxg4 {[%clk 0:02:57]}  Nf6 {[%clk 0:02:37]} 7. Qg2 {[%clk 0:02:57]}  Nbd7 {[%clk 0:02:30]} 8. Bd3 {[%clk 0:02:50]}  b6 {[%clk 0:02:24]} 9. Nf3 {[%clk 0:02:46]}  Ba6 {[%clk 0:02:21]} 10. Qh3 {[%clk 0:02:41]}  Qe7 {[%clk 0:02:18]} 11. Ng5 {[%clk 0:02:31]}  dxc4 {[%clk 0:02:04]} 12. Be4 {[%clk 0:02:27]}  Nxe4 {[%clk 0:01:58]} 13. Ncxe4 {[%clk 0:02:26]}  e5 {[%clk 0:01:55]} 14. Ne6 {[%clk 0:02:24]}  Nf6 {[%clk 0:01:52]} 15. Nxf6+ {[%clk 0:02:21]}  gxf6 {[%clk 0:01:53]} 16. dxe5 {[%clk 0:02:04]}  Bc8 {[%clk 0:01:46]} 17. Qh5+ {[%clk 0:02:03]}  Kd7 {[%clk 0:01:45]} 18. Nxf8+ {[%clk 0:01:55]}  Rxf8 {[%clk 0:01:44]} 19. Bd2 {[%clk 0:01:38]}  fxe5 {[%clk 0:01:36]} 20. O-O-O {[%clk 0:01:35]}  Kc7 {[%clk 0:01:34]} 21. Bc3 {[%clk 0:01:27]}  Bf5 {[%clk 0:01:35]} 22. e4 {[%clk 0:01:12]}  Bxe4 {[%clk 0:01:34]} 23. Rhe1 {[%clk 0:01:03]}  Bd3 {[%clk 0:01:34]} 24. Rxe5 {[%clk 0:00:54]}  Qd7 {[%clk 0:01:30]} 25. Qh4 {[%clk 0:00:46]}  Rae8 {[%clk 0:01:13]} 26. b3 {[%clk 0:00:42]}  Rf5 {[%clk 0:00:55]} 27. Rxe8 {[%clk 0:00:33]}  Qxe8 {[%clk 0:00:56]} 28. bxc4 {[%clk 0:00:19]}  Rf3 {[%clk 0:00:56]} 29. Qd4 {[%clk 0:00:15]}  Bg6 {[%clk 0:00:53]} 30. Qg7+ {[%clk 0:00:13]}  Qf7 {[%clk 0:00:50]} 31. Qd4 {[%clk 0:00:14]}  Qe7 {[%clk 0:00:36]} 32. Kb2 {[%clk 0:00:13]}  c5 {[%clk 0:00:29]} 33. Qe5+ {[%clk 0:00:11]}  Qxe5 {[%clk 0:00:28]} 34. Bxe5+ {[%clk 0:00:12]}  Kc6 {[%clk 0:00:25]} 35. Bg3 {[%clk 0:00:13]}  Rf6 {[%clk 0:00:21]} 36. Rd8 {[%clk 0:00:12]}  a5 {[%clk 0:00:19]} 37. Rc8+ {[%clk 0:00:10]}  Kb7 {[%clk 0:00:18]} 38. Rb8+ {[%clk 0:00:11]}  Ka6 {[%clk 0:00:19]} 39. Rd8 {[%clk 0:00:11]}  Bf7 {[%clk 0:00:17]} 40. Kc3 {[%clk 0:00:11]}  Rf3+ {[%clk 0:00:17]} 41. Rd3 {[%clk 0:00:11]}  Rf5 {[%clk 0:00:11]} 42. a3 {[%clk 0:00:11]}  Rg5 {[%clk 0:00:11]} 43. h3 {[%clk 0:00:10]}  h5 {[%clk 0:00:10]} 44. Rf3 {[%clk 0:00:09]}  Be6 {[%clk 0:00:07]} 45. h4 {[%clk 0:00:08]}  Rg4 {[%clk 0:00:07]} 46. Rf4 {[%clk 0:00:09]}  Rxf4 {[%clk 0:00:07]} 47. Bxf4 {[%clk 0:00:10]}  b5 {[%clk 0:00:07]} 48. cxb5+ {[%clk 0:00:11]}  Kxb5 {[%clk 0:00:08]} 49. Bc7 {[%clk 0:00:11]}  Ka4 {[%clk 0:00:06]} 50. Kb2 {[%clk 0:00:11]}  Kb5 {[%clk 0:00:07]} 51. Bd8 {[%clk 0:00:11]}  a4 {[%clk 0:00:07]} 52. Kc3 {[%clk 0:00:10]}  Bf5 {[%clk 0:00:07]} 53. Be7 {[%clk 0:00:11]}  Kc6 {[%clk 0:00:05]} 54. Kc4 {[%clk 0:00:10]}  Be6+ {[%clk 0:00:05]} 55. Kd3 {[%clk 0:00:11]}  Kd5 {[%clk 0:00:06]} 56. Ke3 {[%clk 0:00:11]}  Bf5 {[%clk 0:00:06]} 57. Kf4 {[%clk 0:00:11]}  Bg6 {[%clk 0:00:06]} 58. Kg5 {[%clk 0:00:12]}  Be8 {[%clk 0:00:06]} 59. Kf6 {[%clk 0:00:12]}  Ke4 {[%clk 0:00:05]} 60. Bxc5 {[%clk 0:00:12]}  Kf3 {[%clk 0:00:04]} 61. Kg5 {[%clk 0:00:13]}  Bf7 {[%clk 0:00:04]} 62. Be3 {[%clk 0:00:13]}  Be8 {[%clk 0:00:04]} 63. Kf6 {[%clk 0:00:14]}  Kg4 {[%clk 0:00:04]} 64. Ke7 {[%clk 0:00:14]}  Bg6 {[%clk 0:00:03]} 65. Bg5 {[%clk 0:00:14]}  Kf3 {[%clk 0:00:03]} 66. Kf6 {[%clk 0:00:14]}  Be8 {[%clk 0:00:04]} 67. Be3 {[%clk 0:00:14]}  Kg4 {[%clk 0:00:04]} 68. Ke7 {[%clk 0:00:15]}  Bg6 {[%clk 0:00:04]} 69. Bg5 {[%clk 0:00:15]}  Kf3 {[%clk 0:00:04]} 70. Kd6 {[%clk 0:00:15]}  Kxf2 {[%clk 0:00:04]} 71. Kc5 {[%clk 0:00:16]}  Kf3 {[%clk 0:00:05]} 72. Kb5 {[%clk 0:00:16]}  Bc2 {[%clk 0:00:05]} 73. Kc4 {[%clk 0:00:16]}  Bb3+ {[%clk 0:00:06]} 74. Kc3 {[%clk 0:00:17]}  Kg4 {[%clk 0:00:07]} 75. Kb4 {[%clk 0:00:17]}  Kf3 {[%clk 0:00:08]} 76. Bf6 {[%clk 0:00:18]}  Kg4 {[%clk 0:00:09]} 77. Bg5 {[%clk 0:00:18]}  Kf3 {[%clk 0:00:10]} 78. Be7 {[%clk 0:00:19]}  Kg4 {[%clk 0:00:11]} 79. Bg5 {[%clk 0:00:20]} 1/2-1/2


[Site "https://www.chess.com"]

[Event "Titled Tuesday Blitz December 20 Late 2022"]
[White "Ibadov, Dashgyn"]
[Black "Milikow, Yoav"]
[WhiteFideId "24107514"]
[BlackFideId "2822237"]
[WhiteElo "2208"]
[BlackElo "2416"]
[Result "0-1"]
[Round "01"]
[TimeControl "180+1"]
[Date "2022.12.21"]
[WhiteClock "0:00:02"]
[BlackClock "0:00:15"]

1. e4 {[%clk 0:02:59]}  e6 {[%clk 0:02:56]} 2. d4 {[%clk 0:02:59]}  d5 {[%clk 0:02:56]} 3. Bd3 {[%clk 0:02:57]}  dxe4 {[%clk 0:02:54]} 4. Bxe4 {[%clk 0:02:58]}  Nf6 {[%clk 0:02:55]} 5. Bf3 {[%clk 0:02:58]}  c5 {[%clk 0:02:56]} 6. Ne2 {[%clk 0:02:58]}  Nc6 {[%clk 0:02:56]} 7. Be3 {[%clk 0:02:58]}  cxd4 {[%clk 0:02:56]} 8. Nxd4 {[%clk 0:02:58]}  Ne5 {[%clk 0:02:57]} 9. O-O {[%clk 0:02:50]}  Be7 {[%clk 0:02:55]} 10. Nc3 {[%clk 0:02:48]}  O-O {[%clk 0:02:54]} 11. Re1 {[%clk 0:02:44]}  a6 {[%clk 0:02:43]} 12. a4 {[%clk 0:02:41]}  Bb4 {[%clk 0:02:24]} 13. Be2 {[%clk 0:02:19]}  Nd5 {[%clk 0:02:16]} 14. Bd2 {[%clk 0:01:54]}  Bc5 {[%clk 0:02:06]} 15. Nxd5 {[%clk 0:01:39]}  Qxd5 {[%clk 0:02:07]} 16. Be3 {[%clk 0:01:37]}  Bd7 {[%clk 0:01:50]} 17. c3 {[%clk 0:01:28]}  Rad8 {[%clk 0:01:43]} 18. Qc2 {[%clk 0:01:27]}  Bxd4 {[%clk 0:01:38]} 19. Bxd4 {[%clk 0:01:26]}  Bc6 {[%clk 0:01:38]} 20. f3 {[%clk 0:01:24]}  Ng6 {[%clk 0:01:38]} 21. Rad1 {[%clk 0:01:18]}  Qg5 {[%clk 0:01:34]} 22. Kh1 {[%clk 0:01:04]}  Nh4 {[%clk 0:01:29]} 23. Bf1 {[%clk 0:01:01]}  Nxf3 {[%clk 0:01:23]} 24. gxf3 {[%clk 0:01:01]}  Bxf3+ {[%clk 0:01:23]} 25. Bg2 {[%clk 0:01:02]}  Bxd1 {[%clk 0:01:21]} 26. Rxd1 {[%clk 0:00:55]}  e5 {[%clk 0:01:21]} 27. Bg1 {[%clk 0:00:52]}  Rxd1 {[%clk 0:01:18]} 28. Qxd1 {[%clk 0:00:53]}  Rd8 {[%clk 0:01:19]} 29. Qe2 {[%clk 0:00:52]}  Rd2 {[%clk 0:01:17]} 30. Qe4 {[%clk 0:00:36]}  Rxb2 {[%clk 0:01:12]} 31. h3 {[%clk 0:00:36]}  g6 {[%clk 0:01:10]} 32. a5 {[%clk 0:00:32]}  Qg3 {[%clk 0:01:07]} 33. c4 {[%clk 0:00:23]}  h5 {[%clk 0:00:36]} 34. c5 {[%clk 0:00:23]}  Kh7 {[%clk 0:00:34]} 35. Qd5 {[%clk 0:00:22]}  Kg7 {[%clk 0:00:30]} 36. Qe4 {[%clk 0:00:14]}  Kh7 {[%clk 0:00:21]} 37. Qd5 {[%clk 0:00:13]}  Qf4 {[%clk 0:00:21]} 38. c6 {[%clk 0:00:07]}  bxc6 {[%clk 0:00:20]} 39. Qxc6 {[%clk 0:00:07]}  Rb1 {[%clk 0:00:20]} 40. Qf3 {[%clk 0:00:05]}  Qxf3 {[%clk 0:00:17]} 41. Bxf3 {[%clk 0:00:06]}  Ra1 {[%clk 0:00:18]} 42. Kg2 {[%clk 0:00:04]}  Rxa5 {[%clk 0:00:18]} 43. h4 {[%clk 0:00:04]}  f5 {[%clk 0:00:19]} 44. Bc6 {[%clk 0:00:03]}  Ra3 {[%clk 0:00:19]} 45. Bf2 {[%clk 0:00:03]}  a5 {[%clk 0:00:19]} 46. Kf1 {[%clk 0:00:03]}  g5 {[%clk 0:00:19]} 47. Ke2 {[%clk 0:00:03]}  Kg6 {[%clk 0:00:16]} 48. hxg5 {[%clk 0:00:03]}  Kxg5 {[%clk 0:00:17]} 49. Be1 {[%clk 0:00:02]}  h4 {[%clk 0:00:15]} 50. Bd2+ {[%clk 0:00:02]}  f4 {[%clk 0:00:15]} 51. Bc1 {[%clk 0:00:02]}  Rc3 {[%clk 0:00:15]} 52. Bd2 {[%clk 0:00:02]}  Rxc6 {[%clk 0:00:15]} 0-1


[Site "https://www.chess.com"]

[Event "Titled Tuesday Blitz December 20 Late 2022"]
[White "Itkis, Boris"]
[Black "Poliakova, Varvara"]
[WhiteFideId "1209167"]
[BlackFideId "13518313"]
[WhiteElo "2216"]
[BlackElo "2075"]
[Result "0-1"]
[Round "01"]
[TimeControl "180+1"]
[Date "2022.12.21"]
[WhiteClock "0:00:02"]
[BlackClock "0:00:26"]

1. c4 {[%clk 0:02:56]}  e5 {[%clk 0:02:59]} 2. Nf3 {[%clk 0:02:54]}  e4 {[%clk 0:02:58]} 3. Nd4 {[%clk 0:02:48]}  c5 {[%clk 0:02:58]} 4. Nb5 {[%clk 0:02:47]}  a6 {[%clk 0:02:51]} 5. N5c3 {[%clk 0:02:46]}  Nf6 {[%clk 0:02:52]} 6. Qc2 {[%clk 0:02:45]}  Qe7 {[%clk 0:02:50]} 7. g3 {[%clk 0:02:45]}  b6 {[%clk 0:02:48]} 8. Bg2 {[%clk 0:02:45]}  Bb7 {[%clk 0:02:49]} 9. O-O {[%clk 0:02:44]}  Qe5 {[%clk 0:02:45]} 10. b3 {[%clk 0:02:41]}  Nc6 {[%clk 0:02:40]} 11. Bb2 {[%clk 0:02:38]}  Nd4 {[%clk 0:02:40]} 12. Qd1 {[%clk 0:02:32]}  Qh5 {[%clk 0:02:37]} 13. h3 {[%clk 0:02:25]}  Bd6 {[%clk 0:02:34]} 14. Na3 {[%clk 0:02:16]}  O-O {[%clk 0:02:33]} 15. Nc2 {[%clk 0:02:16]}  Bc6 {[%clk 0:02:14]} 16. Nxd4 {[%clk 0:02:01]}  cxd4 {[%clk 0:02:15]} 17. Na4 {[%clk 0:01:51]}  Be5 {[%clk 0:02:09]} 18. Nxb6 {[%clk 0:01:44]}  Rae8 {[%clk 0:02:03]} 19. e3 {[%clk 0:01:41]}  dxe3 {[%clk 0:01:55]} 20. Qxh5 {[%clk 0:01:11]}  exf2+ {[%clk 0:01:55]} 21. Rxf2 {[%clk 0:01:05]}  Nxh5 {[%clk 0:01:56]} 22. Bxe5 {[%clk 0:00:59]}  Rxe5 {[%clk 0:01:57]} 23. d4 {[%clk 0:00:59]}  Rg5 {[%clk 0:01:39]} 24. g4 {[%clk 0:00:54]}  e3 {[%clk 0:01:36]} 25. Rc2 {[%clk 0:00:40]}  Nf4 {[%clk 0:01:31]} 26. Bxc6 {[%clk 0:00:38]}  dxc6 {[%clk 0:01:30]} 27. Kh2 {[%clk 0:00:39]}  h5 {[%clk 0:01:28]} 28. Kg3 {[%clk 0:00:34]}  Ne6 {[%clk 0:01:22]} 29. d5 {[%clk 0:00:20]}  Nd4 {[%clk 0:01:17]} 30. Rg2 {[%clk 0:00:17]}  hxg4 {[%clk 0:01:17]} 31. hxg4 {[%clk 0:00:15]}  e2 {[%clk 0:00:45]} 32. Kf4 {[%clk 0:00:12]}  Rg6 {[%clk 0:00:45]} 33. Ke3 {[%clk 0:00:12]}  Nc2+ {[%clk 0:00:41]} 34. Kxe2 {[%clk 0:00:11]}  Nxa1 {[%clk 0:00:42]} 35. Kd2 {[%clk 0:00:10]}  f5 {[%clk 0:00:41]} 36. g5 {[%clk 0:00:10]}  f4 {[%clk 0:00:41]} 37. Nd7 {[%clk 0:00:06]}  Rf5 {[%clk 0:00:39]} 38. dxc6 {[%clk 0:00:03]}  Rxc6 {[%clk 0:00:37]} 39. Kd3 {[%clk 0:00:03]}  Rd6+ {[%clk 0:00:37]} 40. Ke4 {[%clk 0:00:03]}  Ra5 {[%clk 0:00:31]} 41. Ne5 {[%clk 0:00:02]}  Re6 {[%clk 0:00:27]} 42. c5 {[%clk 0:00:02]}  Rxc5 {[%clk 0:00:26]} 43. Kd4 {[%clk 0:00:02]} 0-1


[Site "https://www.chess.com"]